[Event "*** Titled Tuesday Blitz"]
[Site "Chess.com"]
[Date "2019.08.06"]
[Round "8"]
[White "valeriocarnicelli"]
[Black "vladimirdamjanovic"]
[Result "0-1"]
[WhiteElo "2433"]
[BlackElo "2628"]
[TimeControl "180+2"]
[EndTime "14:55:02 PDT"]
[Termination "vladimirdamjanovic won by resignation"]

1. e4 {[%clk 0:03:01.9]} 1... c5 {[%clk 0:03:00.8]} 2. Nf3 {[%clk 0:02:55.5]}
2... d6 {[%clk 0:03:02]} 3. d4 {[%clk 0:02:56.6]} 3... cxd4 {[%clk 0:03:03.9]}
4. Nxd4 {[%clk 0:02:58]} 4... Nf6 {[%clk 0:03:05.4]} 5. Nc3 {[%clk 0:02:59.1]}
5... g6 {[%clk 0:03:06.6]} 6. f3 {[%clk 0:02:59.9]} 6... Bg7 {[%clk 0:03:07.6]}
7. Be3 {[%clk 0:03:01.2]} 7... Nc6 {[%clk 0:03:09.1]} 8. Qd2 {[%clk 0:03:01.5]}
8... h5 {[%clk 0:03:10.5]} 9. O-O-O {[%clk 0:03:01.2]} 9... Bd7 {[%clk
0:03:11.6]} 10. Kb1 {[%clk 0:03:01]} 10... Rc8 {[%clk 0:03:12.5]} 11. Bb5 {[%clk
0:02:58.3]} 11... Ne5 {[%clk 0:03:11.3]} 12. Bxd7+ {[%clk 0:02:56.5]} 12... Qxd7
{[%clk 0:03:12]} 13. Nb3 {[%clk 0:02:45.5]} 13... Nc4 {[%clk 0:03:12]} 14. Qd3
{[%clk 0:02:46]} 14... Nxe3 {[%clk 0:03:11.9]} 15. Qxe3 {[%clk 0:02:47.4]} 15...
Qc6 {[%clk 0:03:00.7]} 16. Rhe1 {[%clk 0:02:42.3]} 16... O-O {[%clk 0:02:59]}
17. Qd3 {[%clk 0:02:41.7]} 17... a6 {[%clk 0:02:55.5]} 18. Nd5 {[%clk
0:02:37.8]} 18... Nxd5 {[%clk 0:02:56.1]} 19. exd5 {[%clk 0:02:39.2]} 19... Qd7
{[%clk 0:02:46.2]} 20. Nd4 {[%clk 0:02:34.7]} 20... Rc5 {[%clk 0:02:43.4]} 21.
c4 {[%clk 0:02:24.9]} 21... Rfc8 {[%clk 0:02:41.6]} 22. Rc1 {[%clk 0:02:15.7]}
22... Bf6 {[%clk 0:02:36.2]} 23. h3 {[%clk 0:02:11.7]} 23... h4 {[%clk 0:02:35]}
24. Re4 {[%clk 0:02:02.5]} 24... Qa4 {[%clk 0:02:11]} 25. b3 {[%clk 0:02:00]}
25... Qa3 {[%clk 0:02:05.5]} 26. Rg4 {[%clk 0:01:54.6]} 26... Kf8 {[%clk
0:01:33.5]} 27. Rc2 {[%clk 0:01:53.3]} 27... b5 {[%clk 0:01:20.7]} 28. Ne6+
{[%clk 0:01:20.5]} 28... Ke8 {[%clk 0:01:04.9]} 29. Nxc5 {[%clk 0:01:21.3]}
29... Qxc5 {[%clk 0:01:01.2]} 30. Qd1 {[%clk 0:01:19.8]} 30... b4 {[%clk
0:00:49.6]} 31. Re4 {[%clk 0:01:20.2]} 31... a5 {[%clk 0:00:48.2]} 32. Qe2
{[%clk 0:01:13.1]} 32... a4 {[%clk 0:00:47.3]} 33. Qe3 {[%clk 0:01:13.8]} 33...
axb3 {[%clk 0:00:37.4]} 34. Qxb3 {[%clk 0:00:49.5]} 34... Ra8 {[%clk 0:00:32.1]}
35. Rce2 {[%clk 0:00:42.1]} 35... Ra3 {[%clk 0:00:26.8]} 36. Qd1 {[%clk
0:00:37.7]} 36... b3 {[%clk 0:00:23.8]} 37. Qe1 {[%clk 0:00:07.6]} 37... bxa2+
{[%clk 0:00:24.5]} 38. Kc2 {[%clk 0:00:06.7]} 38... Kf8 {[%clk 0:00:18.7]} 39.
Rxe7 {[%clk 0:00:07.5]} 39... a1=Q {[%clk 0:00:17.8]} 40. Re8+ {[%clk
0:00:08.1]} 40... Kg7 {[%clk 0:00:19.1]} 0-1

[Event "*** Titled Tuesday Blitz"]
[Site "Chess.com"]
[Date "2019.08.06"]
[Round "8"]
[White "Atakishiyev04"]
[Black "Micki-taryan"]
[Result "1-0"]
[WhiteElo "2668"]
[BlackElo "2948"]
[TimeControl "180+2"]
[EndTime "14:55:04 PDT"]
[Termination "Atakishiyev04 won by checkmate"]

1. e4 {[%clk 0:03:01.9]} 1... c5 {[%clk 0:02:58.6]} 2. Nf3 {[%clk 0:03:02.7]}
2... Nc6 {[%clk 0:02:59.7]} 3. d4 {[%clk 0:03:03.8]} 3... cxd4 {[%clk
0:03:00.8]} 4. Nxd4 {[%clk 0:03:05.7]} 4... e5 {[%clk 0:03:01.9]} 5. Nb5 {[%clk
0:03:05]} 5... d6 {[%clk 0:03:03]} 6. c4 {[%clk 0:02:59.2]} 6... f5 {[%clk
0:03:00]} 7. N1c3 {[%clk 0:02:55.8]} 7... a6 {[%clk 0:03:00]} 8. Bg5 {[%clk
0:02:40.3]} 8... Qd7 {[%clk 0:02:22.3]} 9. Na3 {[%clk 0:02:14.3]} 9... h6 {[%clk
0:02:14.2]} 10. Be3 {[%clk 0:02:11.7]} 10... f4 {[%clk 0:02:11.4]} 11. Bb6
{[%clk 0:02:09.2]} 11... Nf6 {[%clk 0:02:10]} 12. Nd5 {[%clk 0:02:01.2]} 12...
Rb8 {[%clk 0:02:01.9]} 13. Be2 {[%clk 0:01:52.6]} 13... Be7 {[%clk 0:01:54]} 14.
O-O {[%clk 0:01:47.9]} 14... O-O {[%clk 0:01:55.1]} 15. Bc7 {[%clk 0:01:40.4]}
15... Nxd5 {[%clk 0:01:51.4]} 16. Qxd5+ {[%clk 0:01:40.4]} 16... Kh8 {[%clk
0:01:43.3]} 17. Bxb8 {[%clk 0:01:38.5]} 17... Nxb8 {[%clk 0:01:44.8]} 18. Nc2
{[%clk 0:01:35.7]} 18... Nc6 {[%clk 0:01:45.3]} 19. Rfd1 {[%clk 0:01:33.6]}
19... Qe8 {[%clk 0:01:43.5]} 20. b4 {[%clk 0:01:28.2]} 20... Qg6 {[%clk
0:01:39.7]} 21. f3 {[%clk 0:01:26.9]} 21... Be6 {[%clk 0:01:33.8]} 22. Qd3
{[%clk 0:01:23.1]} 22... Rc8 {[%clk 0:01:29.6]} 23. Rac1 {[%clk 0:01:15.2]}
23... Qf7 {[%clk 0:01:28]} 24. b5 {[%clk 0:01:14.2]} 24... Na5 {[%clk
0:01:28.8]} 25. Nb4 {[%clk 0:01:07.4]} 25... Bxc4 {[%clk 0:01:16.5]} 26. Qa3
{[%clk 0:00:46.2]} 26... Bd8 {[%clk 0:01:08.9]} 27. bxa6 {[%clk 0:00:44]} 27...
bxa6 {[%clk 0:00:58.7]} 28. Nxa6 {[%clk 0:00:36.3]} 28... Qa7+ {[%clk
0:00:57.9]} 29. Kh1 {[%clk 0:00:33]} 29... Qxa6 {[%clk 0:00:59.3]} 30. Rxd6
{[%clk 0:00:34.6]} 30... Qb5 {[%clk 0:00:58.9]} 31. Bxc4 {[%clk 0:00:33.2]}
31... Nxc4 {[%clk 0:00:58.9]} 32. Rxh6+ {[%clk 0:00:28.3]} 32... Kg8 {[%clk
0:00:50.7]} 33. Rh8+ {[%clk 0:00:29.3]} 33... Kxh8 {[%clk 0:00:35.5]} 34. Qf8+
{[%clk 0:00:31.2]} 34... Kh7 {[%clk 0:00:37.3]} 35. Qf5+ {[%clk 0:00:33.1]}
35... Kh6 {[%clk 0:00:22]} 36. Qxc8 {[%clk 0:00:33]} 36... Qb2 {[%clk
0:00:12.2]} 37. Rxc4 {[%clk 0:00:23.9]} 37... Bb6 {[%clk 0:00:07.2]} 38. Qh3+
{[%clk 0:00:17]} 38... Kg6 {[%clk 0:00:07]} 39. Qf5+ {[%clk 0:00:16.6]} 39...
Kh6 {[%clk 0:00:06.7]} 40. Rc6+ {[%clk 0:00:17.6]} 40... g6 {[%clk 0:00:06.6]}
41. Rxg6+ {[%clk 0:00:15.4]} 41... Kh7 {[%clk 0:00:06.3]} 42. Qh5# {[%clk
0:00:17.3]} 1-0

[Event "*** Titled Tuesday Blitz"]
[Site "Chess.com"]
[Date "2019.08.06"]
[Round "8"]
[White "eCztery"]
[Black "ALEXJR20"]
[Result "1-0"]
[WhiteElo "2146"]
[BlackElo "2179"]
[TimeControl "180+2"]
[EndTime "14:55:12 PDT"]
[Termination "eCztery won on time"]

1. d4 {[%clk 0:03:01.9]} 1... Nf6 {[%clk 0:02:58.7]} 2. Nc3 {[%clk 0:03:02.5]}
2... d5 {[%clk 0:02:58]} 3. Bf4 {[%clk 0:02:58.7]} 3... e6 {[%clk 0:02:55.5]} 4.
e3 {[%clk 0:02:57.8]} 4... Bd6 {[%clk 0:02:55.4]} 5. Bg3 {[%clk 0:02:09.7]} 5...
O-O {[%clk 0:02:53.1]} 6. Nf3 {[%clk 0:02:10]} 6... a6 {[%clk 0:02:49.1]} 7. Ne5
{[%clk 0:02:08.5]} 7... c5 {[%clk 0:02:47]} 8. f4 {[%clk 0:02:07.3]} 8... Nc6
{[%clk 0:02:45.7]} 9. Bd3 {[%clk 0:02:02.8]} 9... c4 {[%clk 0:02:38.2]} 10. Be2
{[%clk 0:02:01.4]} 10... Bb4 {[%clk 0:02:37.5]} 11. Bh4 {[%clk 0:02:00.6]} 11...
Qa5 {[%clk 0:02:31]} 12. Nxc6 {[%clk 0:01:50.4]} 12... Bxc3+ {[%clk 0:02:22.3]}
13. bxc3 {[%clk 0:01:35.2]} 13... Qxc3+ {[%clk 0:02:17.2]} 14. Kf1 {[%clk
0:01:21.4]} 14... bxc6 {[%clk 0:02:13]} 15. Bxf6 {[%clk 0:01:00.8]} 15... gxf6
{[%clk 0:02:14.9]} 16. Kf2 {[%clk 0:01:02.3]} 16... Rb8 {[%clk 0:01:58.3]} 17.
h4 {[%clk 0:00:54.8]} 17... Rb2 {[%clk 0:01:48.4]} 18. Rh3 {[%clk 0:00:52]}
18... Bd7 {[%clk 0:01:07.1]} 19. Rc1 {[%clk 0:00:36.8]} 19... e5 {[%clk
0:00:41.1]} 20. Rg3+ {[%clk 0:00:37.1]} 20... Kh8 {[%clk 0:00:42.3]} 21. dxe5
{[%clk 0:00:30.6]} 21... fxe5 {[%clk 0:00:41.6]} 22. Bg4 {[%clk 0:00:21.2]}
22... f5 {[%clk 0:00:28.5]} 23. Bh5 {[%clk 0:00:17.6]} 23... d4 {[%clk
0:00:19.8]} 24. Kg1 {[%clk 0:00:13.8]} 24... d3 {[%clk 0:00:17.8]} 25. cxd3
{[%clk 0:00:14.3]} 25... Qxd3 {[%clk 0:00:19]} 26. Qf3 {[%clk 0:00:11.2]} 26...
e4 {[%clk 0:00:16.9]} 27. Qd1 {[%clk 0:00:12.1]} 27... Rd2 {[%clk 0:00:15.2]}
28. Qe1 {[%clk 0:00:11.8]} 28... c3 {[%clk 0:00:15.5]} 29. Rg5 {[%clk
0:00:11.7]} 29... c2 {[%clk 0:00:14.9]} 30. Qg3 {[%clk 0:00:11.9]} 30... Rd1+
{[%clk 0:00:15.1]} 31. Kh2 {[%clk 0:00:11.6]} 31... Rxc1 {[%clk 0:00:14.5]} 32.
Bf7 {[%clk 0:00:13.1]} 32... Rh1+ {[%clk 0:00:12.7]} 33. Kxh1 {[%clk 0:00:14.5]}
33... c1=Q+ {[%clk 0:00:13.8]} 34. Kh2 {[%clk 0:00:16.1]} 34... Qh1+ {[%clk
0:00:04.5]} 35. Kxh1 {[%clk 0:00:16.8]} 35... Qb1+ {[%clk 0:00:04.8]} 36. Kh2
{[%clk 0:00:18]} 36... Qb8 {[%clk 0:00:04.9]} 37. Bb3 {[%clk 0:00:16.8]} 37...
c5 {[%clk 0:00:05.3]} 38. Bc4 {[%clk 0:00:17.4]} 38... Bb5 {[%clk 0:00:05.9]}
39. Be6 {[%clk 0:00:17.6]} 39... Bd3 {[%clk 0:00:05.8]} 40. Rg7 {[%clk
0:00:18.7]} 40... c4 {[%clk 0:00:06.3]} 41. Qg5 {[%clk 0:00:19.6]} 41... c3
{[%clk 0:00:06.9]} 42. Qh6 {[%clk 0:00:20.9]} 1-0

[Event "*** Titled Tuesday Blitz"]
[Site "Chess.com"]
[Date "2019.08.06"]
[Round "8"]
[White "tbalabayev"]
[Black "julinha97"]
[Result "1/2-1/2"]
[WhiteElo "2382"]
[BlackElo "2230"]
[TimeControl "180+2"]
[EndTime "14:55:15 PDT"]
[Termination "Game drawn by agreement"]

1. Nf3 {[%clk 0:03:01.9]} 1... Nf6 {[%clk 0:02:58.1]} 2. g3 {[%clk 0:03:02.9]}
2... g6 {[%clk 0:02:59.4]} 3. Bg2 {[%clk 0:03:04.5]} 3... Bg7 {[%clk 0:03:01.2]}
4. O-O {[%clk 0:03:06.1]} 4... O-O {[%clk 0:03:03]} 5. d3 {[%clk 0:03:07.5]}
5... d5 {[%clk 0:03:03]} 6. Nbd2 {[%clk 0:03:08.7]} 6... c5 {[%clk 0:03:02.1]}
7. e4 {[%clk 0:03:10]} 7... Nc6 {[%clk 0:02:59.1]} 8. Re1 {[%clk 0:03:10.5]}
8... b6 {[%clk 0:02:05.2]} 9. Qe2 {[%clk 0:02:22.6]} 9... Bg4 {[%clk 0:02:01.9]}
10. c3 {[%clk 0:02:20.4]} 10... d4 {[%clk 0:01:36.7]} 11. h3 {[%clk 0:02:14.1]}
11... Bxf3 {[%clk 0:01:36.1]} 12. Nxf3 {[%clk 0:02:15]} 12... e5 {[%clk
0:01:37.3]} 13. Qc2 {[%clk 0:01:58.3]} 13... Qd6 {[%clk 0:01:24]} 14. Nd2 {[%clk
0:01:54.9]} 14... b5 {[%clk 0:01:20]} 15. a4 {[%clk 0:01:54.1]} 15... a6 {[%clk
0:01:20.9]} 16. axb5 {[%clk 0:01:49.7]} 16... axb5 {[%clk 0:01:22.8]} 17. Rxa8
{[%clk 0:01:50.6]} 17... Rxa8 {[%clk 0:01:24.7]} 18. Qb3 {[%clk 0:01:51.7]}
18... dxc3 {[%clk 0:01:19.2]} 19. bxc3 {[%clk 0:01:47.6]} 19... Ra5 {[%clk
0:00:58.7]} 20. Qc2 {[%clk 0:01:41.8]} 20... Nd7 {[%clk 0:00:49.7]} 21. Nb3
{[%clk 0:01:32.8]} 21... Ra8 {[%clk 0:00:45.3]} 22. Be3 {[%clk 0:01:33.9]} 22...
c4 {[%clk 0:00:44]} 23. dxc4 {[%clk 0:01:32.6]} 23... bxc4 {[%clk 0:00:45.9]}
24. Nd2 {[%clk 0:01:31.1]} 24... Qd3 {[%clk 0:00:43.1]} 25. Qxd3 {[%clk
0:01:30.9]} 25... cxd3 {[%clk 0:00:45]} 26. Bf1 {[%clk 0:01:32.2]} 26... Ra3
{[%clk 0:00:32.9]} 27. Rc1 {[%clk 0:01:29.8]} 27... f5 {[%clk 0:00:21.3]} 28.
Bxd3 {[%clk 0:01:27.4]} 28... f4 {[%clk 0:00:22.8]} 29. Nc4 {[%clk 0:01:15.6]}
29... Ra8 {[%clk 0:00:20.6]} 30. gxf4 {[%clk 0:01:15.3]} 30... exf4 {[%clk
0:00:20.6]} 31. Bxf4 {[%clk 0:01:16.9]} 31... Nde5 {[%clk 0:00:20.8]} 32. Nxe5
{[%clk 0:01:14.5]} 32... Nxe5 {[%clk 0:00:22.7]} 33. Be2 {[%clk 0:01:15.4]}
33... Rc8 {[%clk 0:00:22.8]} 34. c4 {[%clk 0:01:15.8]} 34... Rc6 {[%clk
0:00:20.6]} 35. Be3 {[%clk 0:01:16]} 35... Bf8 {[%clk 0:00:19.7]} 36. f4 {[%clk
0:01:15.7]} 36... Nd7 {[%clk 0:00:20.2]} 37. Kf2 {[%clk 0:01:14.2]} 37... Nc5
{[%clk 0:00:21.4]} 38. Kf3 {[%clk 0:01:13.7]} 38... Kf7 {[%clk 0:00:21.2]} 39.
Bd4 {[%clk 0:01:13]} 39... Ne6 {[%clk 0:00:21.7]} 40. Be5 {[%clk 0:01:12.6]}
40... Bh6 {[%clk 0:00:20.8]} 41. f5 {[%clk 0:01:12.9]} 41... Bxc1 {[%clk
0:00:19.4]} 42. fxe6+ {[%clk 0:01:11.9]} 42... Kxe6 {[%clk 0:00:21.3]} 43. Bd4
{[%clk 0:01:12.6]} 43... Ba3 {[%clk 0:00:20.6]} 44. Be3 {[%clk 0:01:09.3]} 44...
Bc5 {[%clk 0:00:21.3]} 45. Bf4 {[%clk 0:01:10.4]} 45... Bd6 {[%clk 0:00:22.1]}
46. Bh6 {[%clk 0:01:11.2]} 46... Be5 {[%clk 0:00:22.8]} 47. Be3 {[%clk
0:01:11.6]} 47... Bd6 {[%clk 0:00:18.1]} 48. Bd3 {[%clk 0:01:05]} 48... Rc8
{[%clk 0:00:18.1]} 49. Ke2 {[%clk 0:01:03.8]} 49... Bc5 {[%clk 0:00:18.8]} 50.
Bf4 {[%clk 0:01:02.6]} 50... Rf8 {[%clk 0:00:19]} 51. Bg3 {[%clk 0:01:02.6]}
51... Bd6 {[%clk 0:00:19]} 52. Bf2 {[%clk 0:01:03.3]} 52... Ra8 {[%clk
0:00:15.3]} 53. c5 {[%clk 0:01:03.1]} 53... Ra2+ {[%clk 0:00:16.5]} 54. Kf3
{[%clk 0:01:02.1]} 54... Rxf2+ {[%clk 0:00:17.7]} 55. Kxf2 {[%clk 0:01:03]}
55... Bxc5+ {[%clk 0:00:19.6]} 56. Kf3 {[%clk 0:01:04.3]} 56... Ke5 {[%clk
0:00:18.6]} 1/2-1/2

[Event "*** Titled Tuesday Blitz"]
[Site "Chess.com"]
[Date "2019.08.06"]
[Round "8"]
[White "Leonid_Starozhilov"]
[Black "Karina_Ivanova"]
[Result "0-1"]
[WhiteElo "2674"]
[BlackElo "2180"]
[TimeControl "180+2"]
[EndTime "14:55:20 PDT"]
[Termination "Karina_Ivanova won on time"]

1. Nf3 {[%clk 0:03:01.9]} 1... Nf6 {[%clk 0:02:57.6]} 2. c4 {[%clk 0:03:02.5]}
2... e6 {[%clk 0:02:57.6]} 3. g3 {[%clk 0:03:02.5]} 3... b6 {[%clk 0:02:58]} 4.
Bg2 {[%clk 0:03:03.8]} 4... Bb7 {[%clk 0:02:58.1]} 5. O-O {[%clk 0:03:05.4]}
5... Be7 {[%clk 0:02:58.5]} 6. d4 {[%clk 0:03:04.4]} 6... O-O {[%clk 0:02:58.7]}
7. d5 {[%clk 0:03:05.8]} 7... exd5 {[%clk 0:02:58.6]} 8. Nh4 {[%clk 0:03:07.2]}
8... c6 {[%clk 0:02:58.3]} 9. cxd5 {[%clk 0:03:06.1]} 9... Nxd5 {[%clk
0:02:58.9]} 10. Nf5 {[%clk 0:03:06.7]} 10... Nc7 {[%clk 0:02:58.9]} 11. e4
{[%clk 0:03:05.4]} 11... d5 {[%clk 0:02:59.3]} 12. exd5 {[%clk 0:02:40.8]} 12...
cxd5 {[%clk 0:02:57.2]} 13. Nc3 {[%clk 0:02:34.6]} 13... Nd7 {[%clk 0:02:53.4]}
14. Be3 {[%clk 0:01:42]} 14... Bf6 {[%clk 0:02:46.8]} 15. Rc1 {[%clk 0:01:39.5]}
15... Ne5 {[%clk 0:02:36]} 16. Bd4 {[%clk 0:01:27.1]} 16... Rc8 {[%clk
0:02:29.9]} 17. Re1 {[%clk 0:01:24]} 17... Re8 {[%clk 0:02:14.3]} 18. h4 {[%clk
0:01:11]} 18... Nc4 {[%clk 0:02:09.1]} 19. Rxe8+ {[%clk 0:01:09.4]} 19... Nxe8
{[%clk 0:02:05.2]} 20. b3 {[%clk 0:01:07.3]} 20... Ncd6 {[%clk 0:01:59]} 21. Ne3
{[%clk 0:00:42.8]} 21... Bxd4 {[%clk 0:01:45.3]} 22. Qxd4 {[%clk 0:00:43.3]}
22... Nb5 {[%clk 0:01:45.9]} 23. Qd2 {[%clk 0:00:21.5]} 23... Nxc3 {[%clk
0:01:37.6]} 24. Rxc3 {[%clk 0:00:22.5]} 24... Rxc3 {[%clk 0:01:37.9]} 25. Qxc3
{[%clk 0:00:23.6]} 25... d4 {[%clk 0:01:29.5]} 26. Qd2 {[%clk 0:00:24.8]} 26...
Bxg2 {[%clk 0:01:29.2]} 27. Nxg2 {[%clk 0:00:26.7]} 27... Nc7 {[%clk 0:01:19.6]}
28. Nf4 {[%clk 0:00:26.4]} 28... Ne6 {[%clk 0:01:12.4]} 29. Nd3 {[%clk
0:00:18.8]} 29... Qc7 {[%clk 0:01:03.2]} 30. b4 {[%clk 0:00:17.7]} 30... Qc3
{[%clk 0:01:00.7]} 31. Qe2 {[%clk 0:00:18.9]} 31... g6 {[%clk 0:00:58]} 32. h5
{[%clk 0:00:17]} 32... gxh5 {[%clk 0:00:53.2]} 33. Ne5 {[%clk 0:00:16.9]} 33...
Qc1+ {[%clk 0:00:48.7]} 34. Kh2 {[%clk 0:00:14.6]} 34... h4 {[%clk 0:00:42.7]}
35. Nf3 {[%clk 0:00:05.9]} 35... hxg3+ {[%clk 0:00:42.2]} 36. fxg3 {[%clk
0:00:07.4]} 36... Qe3 {[%clk 0:00:37.6]} 37. Qd1 {[%clk 0:00:08.7]} 37... Qf2+
{[%clk 0:00:33.6]} 38. Kh1 {[%clk 0:00:06.2]} 38... Qxg3 {[%clk 0:00:29.4]} 39.
Qf1 {[%clk 0:00:07.1]} 39... h5 {[%clk 0:00:19.8]} 40. Nh2 {[%clk 0:00:03.5]}
40... h4 {[%clk 0:00:12.2]} 0-1

[Event "*** Titled Tuesday Blitz"]
[Site "Chess.com"]
[Date "2019.08.06"]
[Round "8"]
[White "Faustregel"]
[Black "Olga_Girya"]
[Result "0-1"]
[WhiteElo "2510"]
[BlackElo "2502"]
[TimeControl "180+2"]
[EndTime "14:55:20 PDT"]
[Termination "Olga_Girya won by checkmate"]

1. d4 {[%clk 0:02:59.8]} 1... Nf6 {[%clk 0:02:59.4]} 2. c4 {[%clk 0:02:59.6]}
2... e6 {[%clk 0:03:00.5]} 3. Nc3 {[%clk 0:02:54.8]} 3... Bb4 {[%clk 0:03:00.2]}
4. f3 {[%clk 0:02:54.4]} 4... d5 {[%clk 0:02:32.3]} 5. a3 {[%clk 0:02:51.8]}
5... Be7 {[%clk 0:02:32.5]} 6. e4 {[%clk 0:02:50]} 6... dxe4 {[%clk 0:02:26.2]}
7. fxe4 {[%clk 0:02:51.9]} 7... c5 {[%clk 0:02:27.5]} 8. d5 {[%clk 0:02:52.8]}
8... exd5 {[%clk 0:02:27.6]} 9. exd5 {[%clk 0:02:52.9]} 9... O-O {[%clk
0:02:28.7]} 10. Nf3 {[%clk 0:02:53.9]} 10... Bg4 {[%clk 0:02:26.2]} 11. Be2
{[%clk 0:02:54.3]} 11... Bd6 {[%clk 0:02:24.3]} 12. Bg5 {[%clk 0:02:52]} 12...
h6 {[%clk 0:02:21.4]} 13. Bh4 {[%clk 0:02:49.8]} 13... Nbd7 {[%clk 0:02:22.4]}
14. O-O {[%clk 0:02:49.8]} 14... Re8 {[%clk 0:02:22.8]} 15. Qc2 {[%clk
0:02:46.7]} 15... Qe7 {[%clk 0:02:03.5]} 16. Rae1 {[%clk 0:02:42]} 16... Qf8
{[%clk 0:02:04.4]} 17. h3 {[%clk 0:02:27.8]} 17... Bh5 {[%clk 0:01:54.8]} 18.
Bd3 {[%clk 0:02:26.8]} 18... Bxf3 {[%clk 0:01:46.4]} 19. Rxf3 {[%clk 0:02:16.7]}
19... Rxe1+ {[%clk 0:01:45.6]} 20. Bxe1 {[%clk 0:02:16.8]} 20... Ne5 {[%clk
0:01:44.1]} 21. Re3 {[%clk 0:02:04.5]} 21... Nxd3 {[%clk 0:01:22.8]} 22. Qxd3
{[%clk 0:02:04.4]} 22... Bf4 {[%clk 0:01:22.6]} 23. Re2 {[%clk 0:01:59.4]} 23...
Re8 {[%clk 0:01:14.9]} 24. Bf2 {[%clk 0:01:59.6]} 24... b6 {[%clk 0:01:00.4]}
25. Nb5 {[%clk 0:01:54.7]} 25... a6 {[%clk 0:00:58.5]} 26. Na7 {[%clk
0:01:51.9]} 26... Qd6 {[%clk 0:00:49.7]} 27. Rxe8+ {[%clk 0:01:42.7]} 27... Nxe8
{[%clk 0:00:50.5]} 28. Qf5 {[%clk 0:01:40.8]} 28... Bh2+ {[%clk 0:00:32.9]} 29.
Kf1 {[%clk 0:01:39]} 29... Nf6 {[%clk 0:00:29.5]} 30. Nc8 {[%clk 0:01:32.9]}
30... Qd8 {[%clk 0:00:29.8]} 31. Bh4 {[%clk 0:01:09.2]} 31... g5 {[%clk
0:00:14.6]} 32. Bf2 {[%clk 0:01:03.9]} 32... Bd6 {[%clk 0:00:14.9]} 33. Be1
{[%clk 0:00:55.4]} 33... Nh5 {[%clk 0:00:15.9]} 34. g4 {[%clk 0:00:47.5]} 34...
Ng7 {[%clk 0:00:16.4]} 35. Nxd6 {[%clk 0:00:27.3]} 35... Nxf5 {[%clk 0:00:16.4]}
36. Nxf5 {[%clk 0:00:28.8]} 36... Qe8 {[%clk 0:00:15.4]} 37. Nxh6+ {[%clk
0:00:26.6]} 37... Kh7 {[%clk 0:00:14.3]} 38. Nf5 {[%clk 0:00:27.3]} 38... Qe4
{[%clk 0:00:15.2]} 39. b3 {[%clk 0:00:24.8]} 39... Qd3+ {[%clk 0:00:16.1]} 40.
Kg2 {[%clk 0:00:24.4]} 40... Qxb3 {[%clk 0:00:17.2]} 41. d6 {[%clk 0:00:23.7]}
41... Qxc4 {[%clk 0:00:17.8]} 42. Bg3 {[%clk 0:00:24.9]} 42... Qd5+ {[%clk
0:00:18.4]} 43. Kf2 {[%clk 0:00:25.8]} 43... c4 {[%clk 0:00:19.4]} 44. Ne3
{[%clk 0:00:21.4]} 44... Qd2+ {[%clk 0:00:20.4]} 45. Kf3 {[%clk 0:00:22.4]}
45... c3 {[%clk 0:00:21.1]} 46. Ke4 {[%clk 0:00:20.7]} 46... c2 {[%clk
0:00:21.4]} 47. Nxc2 {[%clk 0:00:21.7]} 47... Qxc2+ {[%clk 0:00:22.7]} 48. Kd5
{[%clk 0:00:21.6]} 48... Qc8 {[%clk 0:00:22.8]} 49. Be5 {[%clk 0:00:20.7]} 49...
Kg6 {[%clk 0:00:22.9]} 50. Bd4 {[%clk 0:00:19.6]} 50... b5 {[%clk 0:00:22.9]}
51. Ke5 {[%clk 0:00:20]} 51... Qe6# {[%clk 0:00:23]} 0-1

[Event "*** Titled Tuesday Blitz"]
[Site "Chess.com"]
[Date "2019.08.06"]
[Round "8"]
[White "FairChess_on_YouTube"]
[Black "Vuk2000"]
[Result "1-0"]
[WhiteElo "3027"]
[BlackElo "2748"]
[TimeControl "180+2"]
[EndTime "14:55:29 PDT"]
[Termination "FairChess_on_YouTube won by resignation"]

1. c4 {[%clk 0:03:01.9]} 1... e5 {[%clk 0:03:00.7]} 2. Nc3 {[%clk 0:03:02.2]}
2... Nc6 {[%clk 0:03:01.9]} 3. g3 {[%clk 0:03:02.7]} 3... g6 {[%clk 0:03:02.2]}
4. Bg2 {[%clk 0:03:03.5]} 4... Bg7 {[%clk 0:03:03.5]} 5. e4 {[%clk 0:03:03.8]}
5... d6 {[%clk 0:03:03.6]} 6. Nge2 {[%clk 0:03:04.2]} 6... Be6 {[%clk
0:03:03.6]} 7. d3 {[%clk 0:03:01.3]} 7... Qd7 {[%clk 0:03:04.4]} 8. Nd5 {[%clk
0:03:01.2]} 8... Nd8 {[%clk 0:02:59.4]} 9. Be3 {[%clk 0:02:58.7]} 9... c6 {[%clk
0:02:53.9]} 10. Ndc3 {[%clk 0:02:58.7]} 10... Bh3 {[%clk 0:02:54]} 11. Bxh3
{[%clk 0:02:52.5]} 11... Qxh3 {[%clk 0:02:54.7]} 12. d4 {[%clk 0:02:46.4]} 12...
Nf6 {[%clk 0:02:13.5]} 13. dxe5 {[%clk 0:02:45.8]} 13... dxe5 {[%clk 0:02:13.4]}
14. Qd6 {[%clk 0:02:40.6]} 14... Ng4 {[%clk 0:01:40.4]} 15. Bxa7 {[%clk
0:01:09.2]} 15... Rxa7 {[%clk 0:01:18]} 16. Qb8 {[%clk 0:00:57.2]} 16... Ra6
{[%clk 0:01:15.5]} 17. O-O-O {[%clk 0:00:55.2]} 17... Bf6 {[%clk 0:00:54.5]} 18.
f3 {[%clk 0:00:35.4]} 18... Nf2 {[%clk 0:00:38.2]} 19. Rxd8+ {[%clk 0:00:30.8]}
19... Bxd8 {[%clk 0:00:39.6]} 20. Qxe5+ {[%clk 0:00:29.6]} 20... Kd7 {[%clk
0:00:40.9]} 21. Qd4+ {[%clk 0:00:22.6]} 21... Kc8 {[%clk 0:00:41.5]} 22. Qxf2
{[%clk 0:00:23.3]} 22... Bf6 {[%clk 0:00:40.5]} 23. f4 {[%clk 0:00:20.5]} 23...
Qe6 {[%clk 0:00:40.6]} 24. e5 {[%clk 0:00:21.1]} 24... Bd8 {[%clk 0:00:38.8]}
25. b3 {[%clk 0:00:18.8]} 25... Bb6 {[%clk 0:00:36.8]} 26. c5 {[%clk 0:00:19.6]}
26... Ba5 {[%clk 0:00:34.2]} 27. Nd4 {[%clk 0:00:16.1]} 27... Qe7 {[%clk
0:00:34.9]} 28. Ne4 {[%clk 0:00:17]} 28... Bb4 {[%clk 0:00:30]} 29. Nc2 {[%clk
0:00:15]} 29... Ba3+ {[%clk 0:00:21.8]} 30. Nxa3 {[%clk 0:00:14]} 30... Rxa3
{[%clk 0:00:22.5]} 31. Kb2 {[%clk 0:00:14.9]} 31... Ra5 {[%clk 0:00:19.7]} 32.
b4 {[%clk 0:00:15.5]} 32... Ra6 {[%clk 0:00:19.7]} 33. Rd1 {[%clk 0:00:14.9]}
33... Qe6 {[%clk 0:00:19.7]} 34. a3 {[%clk 0:00:14.8]} 34... Rd8 {[%clk
0:00:18.2]} 35. Rd6 {[%clk 0:00:13]} 35... Qe7 {[%clk 0:00:15.6]} 36. Qd4 {[%clk
0:00:12.6]} 36... Kc7 {[%clk 0:00:13.9]} 37. Nd2 {[%clk 0:00:12.2]} 37... Raa8
{[%clk 0:00:13.7]} 38. Nc4 {[%clk 0:00:13.2]} 38... Qe6 {[%clk 0:00:13.5]} 39.
Nb6 {[%clk 0:00:11.6]} 39... Rab8 {[%clk 0:00:14.3]} 40. a4 {[%clk 0:00:11.1]}
40... Qg4 {[%clk 0:00:11]} 41. Qd2 {[%clk 0:00:10.1]} 41... Qf5 {[%clk
0:00:05.2]} 42. a5 {[%clk 0:00:09.1]} 42... f6 {[%clk 0:00:06.4]} 43. Qd4 {[%clk
0:00:08.8]} 43... fxe5 {[%clk 0:00:07.1]} 44. fxe5 {[%clk 0:00:10.7]} 44... h5
{[%clk 0:00:05.1]} 45. e6 {[%clk 0:00:11]} 45... Qxe6 {[%clk 0:00:06.4]} 46.
Qg7+ {[%clk 0:00:11.3]} 1-0